[Event "TUR-ch U13-18 Open 2023"]
[Site "Antalya"]
[Date "2023.01.26"]
[Round "8"]
[White "Engin, Onur Cinar"]
[Black "Caliskan, Seha"]
[Result "1-0"]
[ECO "C02"]
[WhiteElo "1990"]
[BlackElo "1954"]
[Annotator "TA"]
[PlyCount "87"]
[EventDate "2023.01.17"]
[EventType "swiss"]
[EventCountry "TUR"]
[SourceTitle "playchess.com"]
[Source "ChessBase"]
[SourceQuality "1"]
[TimeControl "5400+30"]

{[%evp 19,87,20,30,33,30,26,35,15,25,28,27,28,49,41,58,39,45,38,68,74,72,56,64,0,35,30,25,18,107,107,109,114,112,88,97,28,55,0,0,0,74,79,50,51,52,51,135,103,519,506,557,540,779,754,928,921,873,603,714,697,1253,1113,1237,1039,1660,1584,29972,29970,29964,-29988]} 1. e4 {Hecht,Hans Joachim} e6 2. d4 d5 3. e5 c5 4. c3 Nc6 5. Nf3 Qb6 6. Be2 Bd7 7. O-O cxd4 8. cxd4 Nge7 9. Nc3 {9.Na3 gains popularity.} Nf5 10. Na4 Qa5 {[%cal Oc6e5]} 11. Bd2 {C02: French: Advance Variation.} Qd8 12. Bf4 h6 13. g4 {White is slightly better.} Nh4 14. Nxh4 Qxh4 15. Rc1 {[#]} Qd8 $146 ({Predecessor:} 15... Rc8 16. Be3 Qd8 17. Nc5 Bxc5 18. Rxc5 h5 19. gxh5 Qh4 20. Kh1 Ne7 21. Rxc8+ Bxc8 22. Rg1 Nf5 {1-0 Ekstroem,R (2435)-Olafsson,H (2470) Katrineholm 1995}) 16. Nc5 Qb6 17. Qd2 Rc8 {[%cal Oc6d4]} 18. Be3 Bxc5 19. Rxc5 Ne7 20. b4 a6 {[#]} 21. b5 axb5 22. Rxc8+ Nxc8 23. Qb4 f6 (23... Qd8 $11 {remains equal.}) 24. Rb1 $16 Kf7 25. a4 {White has more active pieces.} ({Don't play} 25. Bxb5 Bxb5 26. Qxb5 Qxb5 27. Rxb5 b6 $11) 25... Ne7 26. exf6 gxf6 27. h4 (27. axb5 $16 {With the idea Rc1.} Rg8 28. Kh1 (28. Bxh6 Nf5 $16)) 27... h5 {[%mdl 64] Deflection} 28. gxh5 ({Better is} 28. g5 $14) 28... Nf5 $11 {[%cal Of5e3] ...Nxe3! would be deadly.} 29. h6 {Hoping for Bh5+.} Qd6 (29... Qd8 $1 $11 {keeps the balance.}) 30. Qxd6 $16 Nxd6 31. axb5 {[%cal Ba4b5,Bb5b6][%mdl 32]} Nf5 {[%emt 1:41:14]} 32. Rc1 {[%emt 1:28:59] aiming for Rc7.} Nxe3 {[%emt 0:00:30]} (32... Rc8 $14) 33. fxe3 $14 {[%emt 0:00:30][%mdl 4096] Endgame Rc7 is the strong threat. KRB-KRB} Kg6 $2 {[%emt 0:00:30][%mdl 8192] Loses the game.} (33... Rc8 $16 {is a better chance.} 34. Rxc8 Bxc8) 34. Rc7 $1 $18 {[%emt 0:00:30][%csl LRb7,LRd7]} Bc8 {[%emt 0:00:30] [#]} 35. h7 {[%emt 0:00:30][%mdl 512]} e5 {[%emt 0:00:30]} (35... b6 36. Bd3+) 36. b6 {[%emt 0:00:30]} Kh6 {[%emt 0:00:30]} 37. Kf2 {[%emt 0:00:30]} Rd8 {[%emt 0:00:30]} 38. Rf7 {[%emt 0:00:30]} Kg6 {[%emt 0:00:30] [#]} 39. Re7 {[%emt 0:00:30]} exd4 {[%emt 0:00:30]} 40. exd4 {[%emt 0:00:30]} f5 {[%emt 0:00:30]} 41. Bb5 {[%emt 0:01:55] White wants to mate with Be8+.} Rh8 {[%emt 0:03:16]} 42. Bd7 {[%emt 0:00:16] Intending Bxc8 and mate.} Bxd7 {[%emt 0:01:23]} 43. Rxd7 {[%emt 0:00:04]} Rxh7 {[%emt 0:00:18] [#]} 44. Kf3 $4 {[%emt 0:00:00][%mdl 40960] Weighted Error Value: White=0.24 (precise) /Black=0.53. Sensor Board Error (Ke4/e5)?} 1-0

[Event "TUR-ch U13-18 Open 2023"]
[Site "Antalya"]
[Date "2023.01.26"]
[Round "8"]
[White "Hatirli, Ugur Can"]
[Black "Kavri, Yusuf Eren"]
[Result "1/2-1/2"]
[ECO "E05"]
[WhiteElo "1989"]
[BlackElo "2050"]
[Annotator "TA"]
[PlyCount "127"]
[EventDate "2023.01.17"]
[EventType "swiss"]
[EventCountry "TUR"]
[SourceTitle "playchess.com"]
[Source "ChessBase"]
[SourceQuality "1"]
[TimeControl "5400+30"]

{[%evp 23,127,5,5,4,57,53,64,56,40,30,36,28,28,35,30,16,23,10,34,23,36,24,29,0,0,-9,0,-15,0,0,0,0,7,0,1,0,0,-1,0,0,0,0,0,0,0,0,0,0,0,0,0,0,0,0,0,0,0,0,0,0,0,0,0,-26,-26,-25,0,-7,0,0,3,0,0,0,0,0,0,0,0,0,0,0,0,0,0,-85,-83,-121,0,0,0,0,0,0,0,0,0,0,0,0,0,0,0,0,0,0]} 1. Nf3 Nf6 2. c4 e6 3. g3 d5 4. Bg2 Be7 5. O-O O-O 6. d4 dxc4 7. Qc2 a6 8. a4 Bd7 9. Ne5 Bc6 10. Nxc6 Nxc6 11. e3 Na5 12. Nd2 c5 13. dxc5 {E05: Open Catalan: 5 Nf3 Be7.} Bxc5 (13... Rc8 $11) 14. Nxc4 $14 Nxc4 15. Qxc4 {White is slightly better.} Qe7 {[#]} 16. Qb3 $146 ({Predecessor:} 16. Bd2 Rac8 17. Qb3 b6 18. a5 Rb8 19. axb6 Rxb6 20. Qc4 Rxb2 21. Bc3 Rbb8 22. Rxa6 {½-½ Kalogeris,I (2351)-Huzman,A (2571) EU-Cup 34th Porto Carras 2018 (6.4)}) 16... Rab8 17. Bd2 {[%cal Bc1d2,Bd2c3,Bc3e5][%mdl 32]} b6 18. Bc3 a5 19. Rac1 Rfd8 20. Qb5 {[%cal Oc3a5]} Rbc8 21. Qa6 {[%cal Ob2b4]} Rc7 22. Be5 {This pair of bishops is nice.} Rcd7 23. Qc4 Nd5 24. Rfe1 Nb4 {[#] ...Nd3 is the strong threat.} 25. Be4 ({Wrong is} 25. Qg4 $2 f5 26. Qc4 Nd3 $19) 25... Qg5 26. Bc3 {[%emt 1:40:58]} Nd5 {[%emt 1:33:49]} 27. h4 {[%emt 0:00:30]} Qh5 {[%emt 0:00:30]} 28. Bxd5 {[%emt 0:00:30]} Rxd5 {[%emt 0:00:30]} 29. Qe2 {[%emt 0:00:30]} Qg6 {[%emt 0:00:30]} 30. Qf3 {[%emt 0:01:04]} f6 {[%emt 0:04:14]} 31. Kg2 {[%emt 0:00:57]} Qe8 {[%emt 0:02:42]} 32. Qg4 {[%emt 0:01:23]} h5 {[%emt 0:00:48]} 33. Qe4 {[%emt 0:00:21]} Kf7 {[%emt 0:01:12]} 34. Qf3 {[%emt 0:00:27]} Kg8 {[%emt 0:00:59]} 35. Qe4 {[%emt 0:00:35]} R8d6 {[%emt 0:00:30]} 36. Rf1 {[%emt 0:00:30]} Qf7 {[%emt 0:00:30]} 37. Rc2 {[%emt 0:00:30]} Qd7 {[%emt 0:00:30]} 38. Rcc1 {[%emt 0:00:30]} Qe8 {[%emt 0:00:30]} 39. Ra1 {[%emt 0:00:30]} Qd7 {[%emt 0:01:29]} 40. Kg1 {[%emt 0:00:29]} Qc6 {[%emt 0:00:39]} 41. Qf3 {[%emt 0:00:45]} Qe8 {[%emt 0:00:21]} 42. Qe4 {[%emt 0:00:13]} Qf7 {[%emt 0:00:10]} 43. Qf4 {[%emt 0:00:16]} Qg6 {[%emt 0:00:23]} 44. Kh2 {[%emt 0:00:43]} Rf5 {[%emt 0:00:44]} 45. Qc4 {[%emt 0:00:03]} Rf3 {[%emt 0:00:31][%cal Oc5e3] [#] aiming for ...Bxe3!} 46. Kg2 {[%emt 0:00:35]} Rf5 {[%emt 0:00:52]} 47. Qe2 {[%emt 0:01:23]} Rfd5 {[%emt 0:00:33]} 48. Qf3 {[%emt 0:00:00]} Kh7 {[%emt 0:01:15]} 49. Rac1 {[%emt 0:00:15]} Rf5 {[%emt 0:00:14]} 50. Qe2 {[%emt 0:00:30]} Rfd5 {[%emt 0:00:30]} 51. Qf3 {[%emt 0:00:00]} Qe8 {[%emt 0:00:12]} 52. Qe4+ {[%emt 0:00:15]} f5 {[%emt 0:00:30]} 53. Qf4 {[%emt 0:00:30]} g6 {[%emt 0:00:30]} 54. Qf3 {[%emt 0:00:30]} (54. Rfe1 $11 {remains equal.}) 54... Qxa4 $17 {[%emt 0:00:30]} 55. Rfe1 {[%emt 0:00:30]} Qe4 {[%emt 0:00:00]} ({Black should try} 55... e5 $17 56. Kh2 e4) 56. Qxe4 $11 {[%emt 0:01:15] The position is equal.} fxe4 {[%emt 0:00:26]} 57. Ra1 {[%emt 0:00:30]} Bb4 {[%emt 0:01:48]} 58. Bxb4 {[%emt 0:00:16]} axb4 {[%emt 0:00:30][%mdl 4096] Endgame KRR-KRR} 59. Ra4 {[%emt 0:00:00]} Rb5 {[%emt 0:00:03]} 60. Rc1 {[%emt 0:00:06]} Rc5 {[%emt 0:00:08] Inhibits Rc4.} 61. Rb1 {[%emt 0:01:01]} Rb5 {[%emt 0:00:54]} 62. Rc1 {[%emt 0:00:30]} Rc5 {[%emt 0:00:00] Wards off Rc4} 63. Rf1 {[%emt 0:00:31]} Rb5 {[%emt 0:00:00]} 64. Rc1 {[%emt 0:00:00] Weighted Error Value: White=0.06 (flawless) /Black=0.07 (flawless)} 1/2-1/2

[Event "TUR-ch U13-18 Open 2023"]
[Site "Antalya"]
[Date "2023.01.26"]
[Round "8"]
[White "Deveci, Huseyin Said"]
[Black "Gupluce, Melih"]
[Result "0-1"]
[ECO "B13"]
[WhiteElo "1987"]
[BlackElo "1309"]
[Annotator "TA"]
[PlyCount "68"]
[EventDate "2023.01.17"]
[EventType "swiss"]
[EventCountry "TUR"]
[SourceTitle "playchess.com"]
[Source "ChessBase"]
[SourceQuality "1"]
[TimeControl "5400+30"]

{[%evp 21,68,23,54,21,29,29,45,32,58,47,44,48,53,39,45,19,80,68,73,91,98,94,145,138,144,143,200,199,242,289,255,252,348,264,434,215,450,310,305,216,200,216,193,0,0,0,0,-883,-879]} 1. e4 {[%emt 0:01:00]} c6 {[%emt 0:01:00]} 2. d4 {[%emt 0:00:30]} d5 {[%emt 0:00:00]} 3. exd5 {[%emt 0:00:30]} cxd5 {[%emt 0:00:00]} 4. Bd3 {[%emt 0:00:00]} Nc6 {[%emt 0:00:30]} 5. c3 {[%emt 0:00:00]} Nf6 {[%emt 0:00:30]} 6. Bf4 {[%emt 0:00:00]} Bg4 {[%emt 0:00:00]} 7. Qb3 {[%emt 0:01:00]} Qd7 {[%emt 0:02:00]} 8. Nd2 {[%emt 0:00:30]} e6 {[%emt 0:01:30]} 9. Ngf3 {[%emt 0:00:00]} a6 {[%emt 0:08:30]} 10. a4 {[%emt 0:09:00]} Be7 {[%emt 0:01:30]} 11. O-O {[%emt 0:00:30]} O-O {[%emt 0:00:30]} 12. h3 {[%emt 0:00:30] B13: Caro-Kann: Exchange Variation and Panov-Botvinnik Attack.} Bh5 {[%emt 0:00:00]} 13. Ne5 {[%emt 0:08:30]} Qc8 {[%emt 0:04:00] [#]} 14. Qc2 $146 {[%emt 0:00:30] White is slightly better.} ({Predecessor:} 14. Ndf3 Nxe5 15. Nxe5 Nd7 16. Qc2 Bg6 17. Nxg6 hxg6 18. Qb3 Qc6 19. Rfe1 Bd6 20. Bxd6 Qxd6 {½-½ Lopes Silva,L (1988)-Azevedo,E (2089) BRA-ch sf 78th 2011 (8.16)}) 14... Bg6 {[%emt 0:03:30]} 15. Nxg6 {[%emt 0:04:30]} hxg6 {[%emt 0:00:30]} 16. Nf3 {[%emt 0:04:30]} Qd8 {[%emt 0:04:30]} 17. Qe2 {[%emt 0:04:30]} Rc8 {[%emt 0:01:30]} 18. b4 {[%emt 0:09:30]} Nb8 {[%emt 0:00:30]} (18... Bd6 $11 19. Ne5 a5) 19. Rac1 $16 {[%emt 0:00:30]} Nbd7 {[%emt 0:01:30]} 20. a5 {[%emt 0:00:30] Wards off Nb6} Ne8 {[%emt 0:01:30]} 21. Rfe1 {[%emt 0:03:30]} g5 {[%emt 0:05:30] [#]} (21... Rc6 $142) 22. Nxg5 $1 {[%emt 0:17:30][%mdl 512]} Bxg5 {[%emt 0:00:30]} 23. Qh5 $1 {[%emt 0:00:30][%csl Gd3][%cal Rh5h7][%mdl 64] Double Attack} Bh6 {[%emt 0:00:30]} (23... g6 $16 {was necessary.} 24. Qxg5 Qxg5 25. Bxg5 Nc7) 24. Bxh6 $18 {[%emt 0:00:00] And now Bg5 would win.} gxh6 {[%emt 0:08:30]} 25. Qxh6 {[%emt 0:00:00][%csl Gd3][%cal Rh6h7]} f5 {[%emt 0:00:30]} 26. Qxe6+ {[%emt 0:00:30]} (26. Rxe6 Rf6 27. Qg5+ Ng7 $14) 26... Rf7 {[%emt 0:00:30][%cal Bf8f7,Bf7e7,Be7e1,Be1f1][%mdl 32]} 27. Qxd5 {[%emt 0:01:30]} Qg5 $2 {[%emt 0:04:30] Black is weak on the light squares} (27... Rc6 28. Bxf5 Nc7) 28. h4 {[%emt 0:12:30]} (28. Bc4 Nd6 $18) (28. Qxb7 $142 Nd6 29. Qd5) 28... Qg7 $2 {[%emt 0:04:30]} (28... Qxh4 29. g3 (29. Qxb7 Nd6 $18) (29. Bxf5 Ng7 $16) 29... Qh6) 29. Re7 {[%emt 0:03:52]} (29. Bxf5 Nc7 30. Qxb7 Rcf8 31. Qxc7 Rxf5 $18) 29... Ndf6 {[%emt 0:01:30]} 30. Qxb7 {[%emt 0:05:51][%cal Oe7f7] Rxf7! would be deadly.} Rxc3 {[%emt 0:01:30]} 31. Rxc3 {[%emt 0:04:29][%cal Od3c4] Bc4! would kill now.} Rxe7 {[%emt 0:01:30]} 32. Qf3 $2 {[%emt 0:00:24]} ({And not} 32. Bc4+ Kh7 33. Qf3 (33. Qxa6 Re1+ 34. Bf1 Ne4 $11) 33... Re1+ 34. Bf1 Qd7 $11) (32. Qxa6 $18 Qg4 33. Qc4+ Kg7 34. d5) 32... Re1+ $11 {[%emt 0:00:30]} 33. Bf1 {[%emt 0:00:32][%cal Oc3e3]} Ne4 {[%emt 0:00:30] White must now prevent ...Rxf1+.} 34. Re3 $2 {[%emt 0:00:00][%mdl 8192] [#]} (34. Rd3 $11) 34... Rxf1+ $1 {[%emt 0:00:30][%mdl 576] Decoy.   Weighted Error Value: White=0.68/Black=0.47} 0-1

[Event "TUR-ch U13-18 Open 2023"]
[Site "Antalya"]
[Date "2023.01.26"]
[Round "8"]
[White "Anacak, Hasan Gunes"]
[Black "Temizer, Umut"]
[Result "0-1"]
[ECO "B90"]
[WhiteElo "1898"]
[BlackElo "1989"]
[Annotator "TA"]
[PlyCount "81"]
[EventDate "2023.01.17"]
[EventType "swiss"]
[EventCountry "TUR"]
[SourceTitle "playchess.com"]
[Source "ChessBase"]
[SourceQuality "1"]
[TimeControl "5400+30"]

{[%evp 9,81,29,26,5,34,29,30,31,52,69,50,28,16,0,14,3,15,-33,-35,-79,-92,-158,-42,-60,-42,-42,-54,-48,-42,-68,-18,-16,0,-24,-39,-41,-35,-54,-28,-38,13,-74,-72,-336,-300,-453,-419,-522,-522,-514,-504,-630,-629,-616,-590,-585,-550,-616,-636,-622,-568,-711,-711,-818,-807,-972,-925,-820,-791,-757,-718,-1066,-1025,-805]} 1. e4 c5 2. Nf3 d6 3. d4 cxd4 4. Nxd4 Nf6 5. Nc3 a6 6. h4 {B90: Sicilian Najdorf: Unusual White 6th moves, 6 Be3 Ng4 and 6 Be3 e5.} e6 7. g4 b5 8. g5 {White has an edge.} b4 9. gxf6 bxc3 10. fxg7 ({Much worse is} 10. bxc3 Qxf6 11. Bg2 (11. Bg5 Qe5 $11) 11... Nd7 $11) 10... Bxg7 11. bxc3 {[#]} Qc7 $146 ({Predecessor:} 11... Qa5 12. Bd2 Bb7 13. Qg4 Qe5 14. Rg1 Bf6 15. Bd3 h5 16. Qg3 Qxg3 17. fxg3 Nd7 {0-1 Elgersma,O (1992)-De Boer,B (2079) Dieren op 2017 (2)}) 12. Rh3 Nd7 13. h5 (13. Qg4 $11 Bf6 14. Bh6) 13... Bb7 {[%mdl 1024] Black has compensation.} 14. Bg5 Rg8 {[#] Strongly threatening ...Bxd4.} 15. Bh4 (15. Qd2 $142) 15... Bf6 (15... Bh6 $17 16. Rb1 Bxe4) 16. Qd2 $15 Rg4 17. Bxf6 Rxe4+ 18. Be2 $1 Nxf6 19. O-O-O $1 Re5 (19... Qa5 $15 20. c4 Qxd2+ 21. Rxd2 Rf4) 20. c4 $11 Ne4 $36 {[%mdl 2048] Black is more active.} 21. Qe1 Qa5 22. Qxa5 Rxa5 23. Rb3 Nc5 24. Rb6 O-O-O ({Better is} 24... Rxa2 $15 25. Kb1 Ra5) 25. Nb3 {[%emt 1:38:54]} (25. Nc6 $11 {keeps the balance.} Bxc6 26. Rxc6+ Kb8 27. Rdxd6 Rxd6 28. Rxd6) 25... Nxb3+ $17 {[%emt 1:27:47]} 26. axb3 $4 {[%emt 0:00:30][%mdl 8192] White does not recover from this.} (26. Rxb3 $17 {was the only chance.} Rxa2 27. Rg3) 26... Kc7 {[%emt 0:00:30]} 27. Rb4 {[%emt 0:00:30]} (27. Rxb7+ $142 Kxb7 28. Bf3+ Kc7 29. Kd2) 27... Ra1+ $19 {[%emt 0:00:30]} 28. Kd2 {[%emt 0:00:30]} Rxd1+ {[%emt 0:00:30] Black is clearly winning.} 29. Kxd1 {[%emt 0:00:30][%mdl 4096] Endgame [#] KRB-KRB} Bc6 {[%emt 0:00:30] Prevents Ra4} 30. h6 {[%emt 0:00:30]} a5 {[%emt 0:00:30]} 31. Rb5 {[%emt 0:00:30]} Bxb5 {[%emt 0:00:30]} 32. cxb5 {[%emt 0:00:30] KR-KB} d5 {[%emt 0:00:30]} 33. Bh5 {[%emt 0:00:30]} Rd7 {[%emt 0:00:30]} 34. f4 {[%emt 0:00:30]} Kd6 {[%emt 0:00:30]} 35. Ke2 {[%emt 0:00:30]} Kc5 {[%emt 0:00:30]} 36. Kf3 {[%emt 0:00:30]} Rc7 {[%emt 0:04:49]} 37. Kg4 {[%emt 0:01:28]} Kd6 {[%emt 0:00:29]} 38. f5 {[%emt 0:02:40]} Ke7 {[%emt 0:01:34]} 39. b6 {[%emt 0:01:19]} Rb7 {[%emt 0:00:09]} 40. fxe6 {[%emt 0:00:05]} Kxe6 {[%emt 0:00:56]} 41. Kg5 {[%emt 0:00:06] Weighted Error Value: White=0.59/Black=0.15 (very precise)} 0-1

[Event "TUR-ch U13-18 Open 2023"]
[Site "Antalya"]
[Date "2023.01.26"]
[Round "8"]
[White "Celik, Ege Yigit"]
[Black "Cicek, Bilal Emre"]
[Result "1-0"]
[ECO "A13"]
[WhiteElo "1891"]
[BlackElo "1538"]
[Annotator "NA RC COMBH"]
[PlyCount "33"]
[EventDate "2023.01.17"]
[EventType "swiss"]
[EventCountry "TUR"]
[SourceTitle "playchess.com"]
[Source "ChessBase"]
[SourceQuality "1"]
[TimeControl "5400+30"]

1. c4 {[%emt 0:01:00]} e6 {[%emt 0:01:00]} 2. Nf3 {[%emt 0:00:30]} d5 {[%emt 0:00:30]} 3. g3 {[%emt 0:00:30]} Nf6 {[%emt 0:00:30]} 4. Bg2 {[%emt 0:00:00]} a6 {[%emt 0:00:00]} 5. O-O {[%emt 0:10:00]} dxc4 {[%emt 0:00:00]} 6. a4 {[%emt 0:00:30]} c5 {[%emt 0:04:30]} (6... Nc6 $11) 7. Na3 {[%emt 0:06:30]} b5 {[%emt 0:10:30]} 8. Ne5 {[%emt 0:10:30]} Nd5 {[%emt 0:34:30]} 9. d3 {[%emt 0:04:30]} cxd3 $14 {[%emt 0:03:30]} 10. Qxd3 {[%emt 0:01:30]} Qc7 {[%emt 0:02:30]} 11. Bf4 {[%emt 0:20:30]} Nxf4 {[%emt 0:01:30]} 12. gxf4 {[%emt 0:00:30]} Bb7 {[%emt 0:00:30]} 13. Nxb5 {[%emt 0:00:30]} Qb6 {[%emt 0:09:30]} 14. Nc4 {[%emt 0:01:30]} axb5 {[%emt 0:04:30]} 15. Nxb6 {[%emt 0:00:30]} Bxg2 {[%emt 0:00:30]} 16. Kxg2 {[%emt 0:00:30]} Nc6 {[%emt 0:00:00]} 17. Qd7# {[%emt 0:00:00]} 1-0

[Event "TUR-ch U13-18 Open 2023"]
[Site "Antalya"]
[Date "2023.01.26"]
[Round "8"]
[White "Karademir, Bugra"]
[Black "Yildirim, Kemal"]
[Result "1/2-1/2"]
[ECO "B23"]
[WhiteElo "1889"]
[BlackElo "1804"]
[Annotator "NA RC COMBH"]
[PlyCount "61"]
[EventDate "2023.01.17"]
[EventType "swiss"]
[EventCountry "TUR"]
[SourceTitle "playchess.com"]
[Source "ChessBase"]
[SourceQuality "1"]
[TimeControl "5400+30"]

1. e4 {[%emt 0:01:00]} c5 {[%emt 0:01:00]} 2. Nc3 {[%emt 0:00:30]} Nc6 {[%emt 0:00:30]} 3. Nge2 {[%emt 0:00:30]} Nf6 {[%emt 0:01:30]} 4. g3 {[%emt 0:04:30]} d5 {[%emt 0:01:30]} 5. exd5 {[%emt 0:04:30]} Nd4 {[%emt 0:00:30]} 6. Bg2 {[%emt 0:06:30]} Bg4 {[%emt 0:00:30]} 7. h3 {[%emt 0:17:30]} Bf3 {[%emt 0:06:30]} 8. O-O {[%emt 0:07:30]} Nxe2+ {[%emt 0:04:30]} 9. Nxe2 {[%emt 0:00:30]} Bxg2 {[%emt 0:00:30]} 10. Kxg2 {[%emt 0:00:00]} Qxd5+ {[%emt 0:00:30]} 11. f3 {[%emt 0:08:30]} g6 {[%emt 0:08:30]} 12. Nc3 {[%emt 0:07:30]} Qc6 {[%emt 0:08:30]} 13. Qe2 {[%emt 0:00:30]} Bg7 {[%emt 0:03:30]} 14. Qb5 {[%emt 0:03:30]} Qxb5 {[%emt 0:06:30]} 15. Nxb5 {[%emt 0:00:30]} Nd5 {[%emt 0:02:30]} 16. a3 {[%emt 0:00:00]} Kd7 {[%emt 0:05:30]} 17. Nc3 {[%emt 0:00:30]} Nc7 {[%emt 0:02:30]} 18. Rb1 {[%emt 0:03:30]} Kc6 {[%emt 0:07:30]} 19. d3 {[%emt 0:03:30]} Ne6 {[%emt 0:03:30]} 20. Be3 {[%emt 0:03:30]} Nd4 {[%emt 0:00:30]} 21. Rfc1 {[%emt 0:05:30]} b6 22. Ne4 f5 23. Nd2 e5 24. b4 Rab8 25. Bxd4 cxd4 26. b5+ Kd5 {[%emt 1:36:07]} 27. c4+ {[%emt 1:39:09]} dxc3 {[%emt 0:00:30]} 28. Rxc3 {[%emt 0:00:30]} Bh6 {[%emt 0:00:30]} 29. Rb2 {[%emt 0:00:30]} Rbc8 {[%emt 0:03:13]} 30. Rc4 {[%emt 0:03:34]} Rxc4 $19 {[%emt 0:05:08]} 31. dxc4+ {[%emt 0:00:00]} 1/2-1/2

[Event "TUR-ch U13-18 Open 2023"]
[Site "Antalya"]
[Date "2023.01.26"]
[Round "8"]
[White "Ergin, Sahin"]
[Black "Eroz, Enis"]
[Result "1-0"]
[ECO "E38"]
[WhiteElo "1878"]
[BlackElo "1827"]
[Annotator "NA RC COMBH"]
[PlyCount "38"]
[EventDate "2023.01.17"]
[EventType "swiss"]
[EventCountry "TUR"]
[SourceTitle "playchess.com"]
[Source "ChessBase"]
[SourceQuality "1"]
[TimeControl "5400+30"]

1. d4 {[%emt 0:04:00]} Nf6 {[%emt 0:02:00]} 2. c4 {[%emt 0:01:30]} e6 {[%emt 0:00:30]} 3. Nc3 {[%emt 0:00:00]} Bb4 {[%emt 0:01:30]} 4. Qc2 {[%emt 0:03:00]} c5 {[%emt 0:01:30]} 5. dxc5 {[%emt 0:00:30]} Na6 {[%emt 0:19:30]} 6. a3 {[%emt 0:12:30]} Qa5 {[%emt 0:08:30]} 7. Bd2 {[%emt 0:02:30]} Bxc3 {[%emt 0:00:30]} 8. Bxc3 {[%emt 0:00:30]} Qxc5 {[%emt 0:00:30]} 9. e3 {[%emt 0:00:30]} b6 {[%emt 0:02:30]} 10. Bd3 {[%emt 0:18:00]} Qg5 {[%emt 0:18:30]} 11. f4 {[%emt 0:07:30]} Qc5 {[%emt 0:02:30]} 12. Qe2 {[%emt 0:03:30]} (12. b4 $18 Qh5 13. Nf3) 12... Bb7 {[%emt 0:06:30]} 13. Nf3 {[%emt 0:02:30]} Qh5 {[%emt 0:09:30]} 14. b4 {[%emt 0:04:30]} Rc8 $18 {[%emt 0:06:09]} (14... O-O $16) 15. O-O Ne4 16. Bxg7 Rg8 17. Bd4 Ke7 18. Ra2 d6 19. c5 Nb8 1-0